{"text_format":"3","workbook":"xlsx","n_sheets":3,"sheets":["Tagesplan","Terminplaner","Zeitintervalle"],"not_rendered":{"defined_names":21},"read":"whole","date_system":"1900"}

{"sheet":"Tagesplan","index":0,"n_rows":76,"n_cols":13,"rows_kept":76,"merged":[[0,1,0,2],[1,1,5,2],[2,12,4,12],[3,7,4,7],[5,12,7,12],[6,1,8,2],[8,12,10,12],[9,7,10,7],[10,1,10,2],[11,12,13,12],[14,12,16,12],[15,7,16,7],[17,12,19,12],[18,1,18,2],[20,12,22,12],[21,7,22,7],[23,12,25,12],[24,1,24,2],[25,1,25,2],[26,7,27,7],[26,12,28,12],[29,12,31,12],[31,7,32,7],[32,12,34,12]]}
[null,"Tagesplan"]
[null,{"$f":"IFERROR(DAY(DatumWert),\"\")","v":22},null,null,"Uhrzeit",{"$f":"IFERROR(UPPER(TEXT(DATE(ReportYear,MonatNummer,ReportDay),\"TT MMMM, JJJJ\")),\"\")","v":"22 JUNI, 2022"},null,"DIE WOCHE IM ÜBERBLICK",{"$nulls":3},"NOTIZEN/AUFGABENLISTE"]
[{"$nulls":4},"Uhrzeit","Beschreibung",null,{"$f":"IFERROR(TEXT(DATEVALUE(DatumWert)+1,\"aaaa\"),\"\")","v":"Donnerstag"},{"$f":"IFERROR(INDEX(TerminPlaner[],MATCH($H$6&\"|\"&ROW(A1),TerminPlaner[EINDEUTIGER WERT (BERECHNET)],0),2),\"\")","v":""},{"$f":"IFERROR(INDEX(TerminPlaner[],MATCH($H$6&\"|\"&ROW(A1),TerminPlaner[EINDEUTIGER WERT (BERECHNET)],0),3),\"\")","v":""},null,null,"Anzug aus der Reinigung holen"]
[{"$nulls":4},{"$f":"Zeitintervalle!E3","v":"06:00:00"},{"$f":"IFERROR(INDEX(TerminPlaner[],MATCH(DATEVALUE(DatumWert)&TagesPlan[[#This Row],[Uhrzeit]],LookUpDatumUndUhrzeit,0),3),\"\")","v":"Aufstehen"},null,{"$f":"IFERROR(TEXT(DATEVALUE(DatumWert)+1,\"t\"),\"\")","v":"23"},{"$f":"IFERROR(INDEX(TerminPlaner[],MATCH($H$6&\"|\"&ROW(A2),TerminPlaner[EINDEUTIGER WERT (BERECHNET)],0),2),\"\")","v":"06:30:00"},{"$f":"IFERROR(INDEX(TerminPlaner[],MATCH($H$6&\"|\"&ROW(A2),TerminPlaner[EINDEUTIGER WERT (BERECHNET)],0),3),\"\")","v":"Frühstück"}]
[{"$nulls":4},{"$f":"Zeitintervalle!E4","v":"06:15:00"},{"$f":"IFERROR(INDEX(TerminPlaner[],MATCH(DATEVALUE(DatumWert)&TagesPlan[[#This Row],[Uhrzeit]],LookUpDatumUndUhrzeit,0),3),\"\")","v":""},null,null,{"$f":"IFERROR(INDEX(TerminPlaner[],MATCH($H$6&\"|\"&ROW(A3),TerminPlaner[EINDEUTIGER WERT (BERECHNET)],0),2),\"\")","v":""},{"$f":"IFERROR(INDEX(TerminPlaner[],MATCH($H$6&\"|\"&ROW(A3),TerminPlaner[EINDEUTIGER WERT (BERECHNET)],0),3),\"\")","v":""}]
[{"$nulls":4},{"$f":"Zeitintervalle!E5","v":"06:30:00"},{"$f":"IFERROR(INDEX(TerminPlaner[],MATCH(DATEVALUE(DatumWert)&TagesPlan[[#This Row],[Uhrzeit]],LookUpDatumUndUhrzeit,0),3),\"\")","v":"Duschen"},null,{"$f":"IFERROR(DatumWert+1,\"\")","v":"2022-06-23"},{"$f":"IFERROR(INDEX(TerminPlaner[],MATCH($H$6&\"|\"&ROW(A4),TerminPlaner[EINDEUTIGER WERT (BERECHNET)],0),2),\"\")","v":""},{"$f":"IFERROR(INDEX(TerminPlaner[],MATCH($H$6&\"|\"&ROW(A4),TerminPlaner[EINDEUTIGER WERT (BERECHNET)],0),3),\"\")","v":""},null,null,"Kabelanbieter anrufen"]
[null,{"$f":"IFERROR(TEXT(DatumWert,\"aaaa\"),\"\")","v":"Mittwoch"},null,null,{"$f":"Zeitintervalle!E6","v":"06:45:00"},{"$f":"IFERROR(INDEX(TerminPlaner[],MATCH(DATEVALUE(DatumWert)&TagesPlan[[#This Row],[Uhrzeit]],LookUpDatumUndUhrzeit,0),3),\"\")","v":""},null,null,{"$f":"IFERROR(INDEX(TerminPlaner[],MATCH($H$6&\"|\"&ROW(A5),TerminPlaner[EINDEUTIGER WERT (BERECHNET)],0),2),\"\")","v":""},{"$f":"IFERROR(INDEX(TerminPlaner[],MATCH($H$6&\"|\"&ROW(A5),TerminPlaner[EINDEUTIGER WERT (BERECHNET)],0),3),\"\")","v":""}]
[{"$nulls":4},{"$f":"Zeitintervalle!E7","v":"07:00:00"},{"$f":"IFERROR(INDEX(TerminPlaner[],MATCH(DATEVALUE(DatumWert)&TagesPlan[[#This Row],[Uhrzeit]],LookUpDatumUndUhrzeit,0),3),\"\")","v":""},null,null,{"$f":"IFERROR(INDEX(TerminPlaner[],MATCH($H$6&\"|\"&ROW(A6),TerminPlaner[EINDEUTIGER WERT (BERECHNET)],0),2),\"\")","v":""},{"$f":"IFERROR(INDEX(TerminPlaner[],MATCH($H$6&\"|\"&ROW(A6),TerminPlaner[EINDEUTIGER WERT (BERECHNET)],0),3),\"\")","v":""}]
[{"$nulls":4},{"$f":"Zeitintervalle!E8","v":"07:15:00"},{"$f":"IFERROR(INDEX(TerminPlaner[],MATCH(DATEVALUE(DatumWert)&TagesPlan[[#This Row],[Uhrzeit]],LookUpDatumUndUhrzeit,0),3),\"\")","v":""},null,{"$f":"IFERROR(TEXT(DATEVALUE(DatumWert)+2,\"aaaa\"),\"\")","v":"Freitag"},{"$f":"IFERROR(INDEX(TerminPlaner[],MATCH($H$12&\"|\"&ROW(A1),TerminPlaner[EINDEUTIGER WERT (BERECHNET)],0),2),\"\")","v":""},{"$f":"IFERROR(INDEX(TerminPlaner[],MATCH($H$12&\"|\"&ROW(A1),TerminPlaner[EINDEUTIGER WERT (BERECHNET)],0),3),\"\")","v":""}]
[{"$nulls":4},{"$f":"Zeitintervalle!E9","v":"07:30:00"},{"$f":"IFERROR(INDEX(TerminPlaner[],MATCH(DATEVALUE(DatumWert)&TagesPlan[[#This Row],[Uhrzeit]],LookUpDatumUndUhrzeit,0),3),\"\")","v":"Zur Arbeit gehen"},null,{"$f":"IFERROR(TEXT(DATEVALUE(DatumWert)+2,\"t\"),\"\")","v":"24"},{"$f":"IFERROR(INDEX(TerminPlaner[],MATCH($H$12&\"|\"&ROW(A2),TerminPlaner[EINDEUTIGER WERT (BERECHNET)],0),2),\"\")","v":""},{"$f":"IFERROR(INDEX(TerminPlaner[],MATCH($H$12&\"|\"&ROW(A2),TerminPlaner[EINDEUTIGER WERT (BERECHNET)],0),3),\"\")","v":""}]
[null,"ZEITPLAN ANZEIGEN",null,null,{"$f":"Zeitintervalle!E10","v":"07:45:00"},{"$f":"IFERROR(INDEX(TerminPlaner[],MATCH(DATEVALUE(DatumWert)&TagesPlan[[#This Row],[Uhrzeit]],LookUpDatumUndUhrzeit,0),3),\"\")","v":""},null,null,{"$f":"IFERROR(INDEX(TerminPlaner[],MATCH($H$12&\"|\"&ROW(A3),TerminPlaner[EINDEUTIGER WERT (BERECHNET)],0),2),\"\")","v":""},{"$f":"IFERROR(INDEX(TerminPlaner[],MATCH($H$12&\"|\"&ROW(A3),TerminPlaner[EINDEUTIGER WERT (BERECHNET)],0),3),\"\")","v":""}]
[{"$nulls":4},{"$f":"Zeitintervalle!E11","v":"08:00:00"},{"$f":"IFERROR(INDEX(TerminPlaner[],MATCH(DATEVALUE(DatumWert)&TagesPlan[[#This Row],[Uhrzeit]],LookUpDatumUndUhrzeit,0),3),\"\")","v":"Schichtbeginn"},null,{"$f":"IFERROR(DatumWert+2,\"\")","v":"2022-06-24"},{"$f":"IFERROR(INDEX(TerminPlaner[],MATCH($H$12&\"|\"&ROW(A4),TerminPlaner[EINDEUTIGER WERT (BERECHNET)],0),2),\"\")","v":""},{"$f":"IFERROR(INDEX(TerminPlaner[],MATCH($H$12&\"|\"&ROW(A4),TerminPlaner[EINDEUTIGER WERT (BERECHNET)],0),3),\"\")","v":""}]
[null,"Jahr",null,null,{"$f":"Zeitintervalle!E12","v":"08:15:00"},{"$f":"IFERROR(INDEX(TerminPlaner[],MATCH(DATEVALUE(DatumWert)&TagesPlan[[#This Row],[Uhrzeit]],LookUpDatumUndUhrzeit,0),3),\"\")","v":""},null,null,{"$f":"IFERROR(INDEX(TerminPlaner[],MATCH($H$12&\"|\"&ROW(A5),TerminPlaner[EINDEUTIGER WERT (BERECHNET)],0),2),\"\")","v":""},{"$f":"IFERROR(INDEX(TerminPlaner[],MATCH($H$12&\"|\"&ROW(A5),TerminPlaner[EINDEUTIGER WERT (BERECHNET)],0),3),\"\")","v":""}]
[{"$nulls":4},{"$f":"Zeitintervalle!E13","v":"08:30:00"},{"$f":"IFERROR(INDEX(TerminPlaner[],MATCH(DATEVALUE(DatumWert)&TagesPlan[[#This Row],[Uhrzeit]],LookUpDatumUndUhrzeit,0),3),\"\")","v":""},null,null,{"$f":"IFERROR(INDEX(TerminPlaner[],MATCH($H$12&\"|\"&ROW(A6),TerminPlaner[EINDEUTIGER WERT (BERECHNET)],0),2),\"\")","v":""},{"$f":"IFERROR(INDEX(TerminPlaner[],MATCH($H$12&\"|\"&ROW(A6),TerminPlaner[EINDEUTIGER WERT (BERECHNET)],0),3),\"\")","v":""}]
[null,"Monat",null,null,{"$f":"Zeitintervalle!E14","v":"08:45:00"},{"$f":"IFERROR(INDEX(TerminPlaner[],MATCH(DATEVALUE(DatumWert)&TagesPlan[[#This Row],[Uhrzeit]],LookUpDatumUndUhrzeit,0),3),\"\")","v":""},null,{"$f":"IFERROR(TEXT(DATEVALUE(DatumWert)+3,\"aaaa\"),\"\")","v":"Samstag"},{"$f":"IFERROR(INDEX(TerminPlaner[],MATCH($H$18&\"|\"&ROW(A1),TerminPlaner[EINDEUTIGER WERT (BERECHNET)],0),2),\"\")","v":""},{"$f":"IFERROR(INDEX(TerminPlaner[],MATCH($H$18&\"|\"&ROW(A1),TerminPlaner[EINDEUTIGER WERT (BERECHNET)],0),3),\"\")","v":""}]
[{"$nulls":4},{"$f":"Zeitintervalle!E15","v":"09:00:00"},{"$f":"IFERROR(INDEX(TerminPlaner[],MATCH(DATEVALUE(DatumWert)&TagesPlan[[#This Row],[Uhrzeit]],LookUpDatumUndUhrzeit,0),3),\"\")","v":""},null,{"$f":"IFERROR(TEXT(DATEVALUE(DatumWert)+3,\"t\"),\"\")","v":"25"},{"$f":"IFERROR(INDEX(TerminPlaner[],MATCH($H$18&\"|\"&ROW(A2),TerminPlaner[EINDEUTIGER WERT (BERECHNET)],0),2),\"\")","v":""},{"$f":"IFERROR(INDEX(TerminPlaner[],MATCH($H$18&\"|\"&ROW(A2),TerminPlaner[EINDEUTIGER WERT (BERECHNET)],0),3),\"\")","v":""}]
[null,"Tag",null,null,{"$f":"Zeitintervalle!E16","v":"09:15:00"},{"$f":"IFERROR(INDEX(TerminPlaner[],MATCH(DATEVALUE(DatumWert)&TagesPlan[[#This Row],[Uhrzeit]],LookUpDatumUndUhrzeit,0),3),\"\")","v":""},null,null,{"$f":"IFERROR(INDEX(TerminPlaner[],MATCH($H$18&\"|\"&ROW(A3),TerminPlaner[EINDEUTIGER WERT (BERECHNET)],0),2),\"\")","v":""},{"$f":"IFERROR(INDEX(TerminPlaner[],MATCH($H$18&\"|\"&ROW(A3),TerminPlaner[EINDEUTIGER WERT (BERECHNET)],0),3),\"\")","v":""}]
[{"$nulls":4},{"$f":"Zeitintervalle!E17","v":"09:30:00"},{"$f":"IFERROR(INDEX(TerminPlaner[],MATCH(DATEVALUE(DatumWert)&TagesPlan[[#This Row],[Uhrzeit]],LookUpDatumUndUhrzeit,0),3),\"\")","v":""},null,{"$f":"IFERROR(DatumWert+3,\"\")","v":"2022-06-25"},{"$f":"IFERROR(INDEX(TerminPlaner[],MATCH($H$18&\"|\"&ROW(A4),TerminPlaner[EINDEUTIGER WERT (BERECHNET)],0),2),\"\")","v":""},{"$f":"IFERROR(INDEX(TerminPlaner[],MATCH($H$18&\"|\"&ROW(A4),TerminPlaner[EINDEUTIGER WERT (BERECHNET)],0),3),\"\")","v":""}]
[null,"ZEITPLAN BEARBEITEN",null,null,{"$f":"Zeitintervalle!E18","v":"09:45:00"},{"$f":"IFERROR(INDEX(TerminPlaner[],MATCH(DATEVALUE(DatumWert)&TagesPlan[[#This Row],[Uhrzeit]],LookUpDatumUndUhrzeit,0),3),\"\")","v":""},null,null,{"$f":"IFERROR(INDEX(TerminPlaner[],MATCH($H$18&\"|\"&ROW(A5),TerminPlaner[EINDEUTIGER WERT (BERECHNET)],0),2),\"\")","v":""},{"$f":"IFERROR(INDEX(TerminPlaner[],MATCH($H$18&\"|\"&ROW(A5),TerminPlaner[EINDEUTIGER WERT (BERECHNET)],0),3),\"\")","v":""}]
[{"$nulls":4},{"$f":"Zeitintervalle!E19","v":"10:00:00"},{"$f":"IFERROR(INDEX(TerminPlaner[],MATCH(DATEVALUE(DatumWert)&TagesPlan[[#This Row],[Uhrzeit]],LookUpDatumUndUhrzeit,0),3),\"\")","v":"Pause"},null,null,{"$f":"IFERROR(INDEX(TerminPlaner[],MATCH($H$18&\"|\"&ROW(A6),TerminPlaner[EINDEUTIGER WERT (BERECHNET)],0),2),\"\")","v":""},{"$f":"IFERROR(INDEX(TerminPlaner[],MATCH($H$18&\"|\"&ROW(A6),TerminPlaner[EINDEUTIGER WERT (BERECHNET)],0),3),\"\")","v":""}]
[null,"Zum Bearbeiten der Zeitintervalle auswählen",null,null,{"$f":"Zeitintervalle!E20","v":"10:15:00"},{"$f":"IFERROR(INDEX(TerminPlaner[],MATCH(DATEVALUE(DatumWert)&TagesPlan[[#This Row],[Uhrzeit]],LookUpDatumUndUhrzeit,0),3),\"\")","v":""},null,{"$f":"IFERROR(TEXT(DATEVALUE(DatumWert)+4,\"aaaa\"),\"\")","v":"Sonntag"},{"$f":"IFERROR(INDEX(TerminPlaner[],MATCH($H$24&\"|\"&ROW(A1),TerminPlaner[EINDEUTIGER WERT (BERECHNET)],0),2),\"\")","v":""},{"$f":"IFERROR(INDEX(TerminPlaner[],MATCH($H$24&\"|\"&ROW(A1),TerminPlaner[EINDEUTIGER WERT (BERECHNET)],0),3),\"\")","v":""}]
[{"$nulls":4},{"$f":"Zeitintervalle!E21","v":"10:30:00"},{"$f":"IFERROR(INDEX(TerminPlaner[],MATCH(DATEVALUE(DatumWert)&TagesPlan[[#This Row],[Uhrzeit]],LookUpDatumUndUhrzeit,0),3),\"\")","v":""},null,{"$f":"IFERROR(TEXT(DATEVALUE(DatumWert)+4,\"t\"),\"\")","v":"26"},{"$f":"IFERROR(INDEX(TerminPlaner[],MATCH($H$24&\"|\"&ROW(A2),TerminPlaner[EINDEUTIGER WERT (BERECHNET)],0),2),\"\")","v":""},{"$f":"IFERROR(INDEX(TerminPlaner[],MATCH($H$24&\"|\"&ROW(A2),TerminPlaner[EINDEUTIGER WERT (BERECHNET)],0),3),\"\")","v":""}]
[null,"Auswählen, um einen neuen Termin hinzuzufügen",null,null,{"$f":"Zeitintervalle!E22","v":"10:45:00"},{"$f":"IFERROR(INDEX(TerminPlaner[],MATCH(DATEVALUE(DatumWert)&TagesPlan[[#This Row],[Uhrzeit]],LookUpDatumUndUhrzeit,0),3),\"\")","v":""},null,null,{"$f":"IFERROR(INDEX(TerminPlaner[],MATCH($H$24&\"|\"&ROW(A3),TerminPlaner[EINDEUTIGER WERT (BERECHNET)],0),2),\"\")","v":""},{"$f":"IFERROR(INDEX(TerminPlaner[],MATCH($H$24&\"|\"&ROW(A3),TerminPlaner[EINDEUTIGER WERT (BERECHNET)],0),3),\"\")","v":""}]
[{"$nulls":4},{"$f":"Zeitintervalle!E23","v":"11:00:00"},{"$f":"IFERROR(INDEX(TerminPlaner[],MATCH(DATEVALUE(DatumWert)&TagesPlan[[#This Row],[Uhrzeit]],LookUpDatumUndUhrzeit,0),3),\"\")","v":""},null,{"$f":"IFERROR(DatumWert+4,\"\")","v":"2022-06-26"},{"$f":"IFERROR(INDEX(TerminPlaner[],MATCH($H$24&\"|\"&ROW(A4),TerminPlaner[EINDEUTIGER WERT (BERECHNET)],0),2),\"\")","v":""},{"$f":"IFERROR(INDEX(TerminPlaner[],MATCH($H$24&\"|\"&ROW(A4),TerminPlaner[EINDEUTIGER WERT (BERECHNET)],0),3),\"\")","v":""}]
[null,"IM ZEITPLAN HERVORHEBEN:",null,null,{"$f":"Zeitintervalle!E24","v":"11:15:00"},{"$f":"IFERROR(INDEX(TerminPlaner[],MATCH(DATEVALUE(DatumWert)&TagesPlan[[#This Row],[Uhrzeit]],LookUpDatumUndUhrzeit,0),3),\"\")","v":""},null,null,{"$f":"IFERROR(INDEX(TerminPlaner[],MATCH($H$24&\"|\"&ROW(A5),TerminPlaner[EINDEUTIGER WERT (BERECHNET)],0),2),\"\")","v":""},{"$f":"IFERROR(INDEX(TerminPlaner[],MATCH($H$24&\"|\"&ROW(A5),TerminPlaner[EINDEUTIGER WERT (BERECHNET)],0),3),\"\")","v":""}]
[null,"Pause",null,null,{"$f":"Zeitintervalle!E25","v":"11:30:00"},{"$f":"IFERROR(INDEX(TerminPlaner[],MATCH(DATEVALUE(DatumWert)&TagesPlan[[#This Row],[Uhrzeit]],LookUpDatumUndUhrzeit,0),3),\"\")","v":""},null,{"$f":"IFERROR(TEXT(DATEVALUE(DatumWert)+5,\"aaaa\"),\"\")","v":"Montag"},{"$f":"IFERROR(INDEX(TerminPlaner[],MATCH($H$29&\"|\"&ROW(A1),TerminPlaner[EINDEUTIGER WERT (BERECHNET)],0),2),\"\")","v":""},{"$f":"IFERROR(INDEX(TerminPlaner[],MATCH($H$29&\"|\"&ROW(A1),TerminPlaner[EINDEUTIGER WERT (BERECHNET)],0),3),\"\")","v":""}]
[{"$nulls":4},{"$f":"Zeitintervalle!E26","v":"11:45:00"},{"$f":"IFERROR(INDEX(TerminPlaner[],MATCH(DATEVALUE(DatumWert)&TagesPlan[[#This Row],[Uhrzeit]],LookUpDatumUndUhrzeit,0),3),\"\")","v":""},null,{"$f":"IFERROR(TEXT(DATEVALUE(DatumWert)+5,\"t\"),\"\")","v":"27"},{"$f":"IFERROR(INDEX(TerminPlaner[],MATCH($H$29&\"|\"&ROW(A2),TerminPlaner[EINDEUTIGER WERT (BERECHNET)],0),2),\"\")","v":""},{"$f":"IFERROR(INDEX(TerminPlaner[],MATCH($H$29&\"|\"&ROW(A2),TerminPlaner[EINDEUTIGER WERT (BERECHNET)],0),3),\"\")","v":""}]
[{"$nulls":4},{"$f":"Zeitintervalle!E27","v":"12:00:00"},{"$f":"IFERROR(INDEX(TerminPlaner[],MATCH(DATEVALUE(DatumWert)&TagesPlan[[#This Row],[Uhrzeit]],LookUpDatumUndUhrzeit,0),3),\"\")","v":"Mittagessen"},null,null,{"$f":"IFERROR(INDEX(TerminPlaner[],MATCH($H$29&\"|\"&ROW(A3),TerminPlaner[EINDEUTIGER WERT (BERECHNET)],0),2),\"\")","v":""},{"$f":"IFERROR(INDEX(TerminPlaner[],MATCH($H$29&\"|\"&ROW(A3),TerminPlaner[EINDEUTIGER WERT (BERECHNET)],0),3),\"\")","v":""}]
[{"$nulls":4},{"$f":"Zeitintervalle!E28","v":"12:15:00"},{"$f":"IFERROR(INDEX(TerminPlaner[],MATCH(DATEVALUE(DatumWert)&TagesPlan[[#This Row],[Uhrzeit]],LookUpDatumUndUhrzeit,0),3),\"\")","v":""},null,{"$f":"IFERROR(DatumWert+5,\"\")","v":"2022-06-27"},{"$f":"IFERROR(INDEX(TerminPlaner[],MATCH($H$29&\"|\"&ROW(A4),TerminPlaner[EINDEUTIGER WERT (BERECHNET)],0),2),\"\")","v":""},{"$f":"IFERROR(INDEX(TerminPlaner[],MATCH($H$29&\"|\"&ROW(A4),TerminPlaner[EINDEUTIGER WERT (BERECHNET)],0),3),\"\")","v":""}]
[{"$nulls":4},{"$f":"Zeitintervalle!E29","v":"12:30:00"},{"$f":"IFERROR(INDEX(TerminPlaner[],MATCH(DATEVALUE(DatumWert)&TagesPlan[[#This Row],[Uhrzeit]],LookUpDatumUndUhrzeit,0),3),\"\")","v":""},null,null,{"$f":"IFERROR(INDEX(TerminPlaner[],MATCH($H$29&\"|\"&ROW(A5),TerminPlaner[EINDEUTIGER WERT (BERECHNET)],0),2),\"\")","v":""},{"$f":"IFERROR(INDEX(TerminPlaner[],MATCH($H$29&\"|\"&ROW(A5),TerminPlaner[EINDEUTIGER WERT (BERECHNET)],0),3),\"\")","v":""}]
[{"$nulls":4},{"$f":"Zeitintervalle!E30","v":"12:45:00"},{"$f":"IFERROR(INDEX(TerminPlaner[],MATCH(DATEVALUE(DatumWert)&TagesPlan[[#This Row],[Uhrzeit]],LookUpDatumUndUhrzeit,0),3),\"\")","v":""},null,{"$f":"IFERROR(TEXT(DATEVALUE(DatumWert)+6,\"aaaa\"),\"\")","v":"Dienstag"},{"$f":"IFERROR(INDEX(TerminPlaner[],MATCH($H$34&\"|\"&ROW(A1),TerminPlaner[EINDEUTIGER WERT (BERECHNET)],0),2),\"\")","v":""},{"$f":"IFERROR(INDEX(TerminPlaner[],MATCH($H$34&\"|\"&ROW(A1),TerminPlaner[EINDEUTIGER WERT (BERECHNET)],0),3),\"\")","v":""}]
[{"$nulls":4},{"$f":"Zeitintervalle!E31","v":"13:00:00"},{"$f":"IFERROR(INDEX(TerminPlaner[],MATCH(DATEVALUE(DatumWert)&TagesPlan[[#This Row],[Uhrzeit]],LookUpDatumUndUhrzeit,0),3),\"\")","v":""},null,{"$f":"IFERROR(TEXT(DATEVALUE(DatumWert)+6,\"t\"),\"\")","v":"28"},{"$f":"IFERROR(INDEX(TerminPlaner[],MATCH($H$34&\"|\"&ROW(A2),TerminPlaner[EINDEUTIGER WERT (BERECHNET)],0),2),\"\")","v":""},{"$f":"IFERROR(INDEX(TerminPlaner[],MATCH($H$34&\"|\"&ROW(A2),TerminPlaner[EINDEUTIGER WERT (BERECHNET)],0),3),\"\")","v":""}]
[{"$nulls":4},{"$f":"Zeitintervalle!E32","v":"13:15:00"},{"$f":"IFERROR(INDEX(TerminPlaner[],MATCH(DATEVALUE(DatumWert)&TagesPlan[[#This Row],[Uhrzeit]],LookUpDatumUndUhrzeit,0),3),\"\")","v":""},null,null,{"$f":"IFERROR(INDEX(TerminPlaner[],MATCH($H$34&\"|\"&ROW(A3),TerminPlaner[EINDEUTIGER WERT (BERECHNET)],0),2),\"\")","v":""},{"$f":"IFERROR(INDEX(TerminPlaner[],MATCH($H$34&\"|\"&ROW(A3),TerminPlaner[EINDEUTIGER WERT (BERECHNET)],0),3),\"\")","v":""}]
[{"$nulls":4},{"$f":"Zeitintervalle!E33","v":"13:30:00"},{"$f":"IFERROR(INDEX(TerminPlaner[],MATCH(DATEVALUE(DatumWert)&TagesPlan[[#This Row],[Uhrzeit]],LookUpDatumUndUhrzeit,0),3),\"\")","v":"Genossenschaft anrufen"},null,{"$f":"IFERROR(DatumWert+6,\"\")","v":"2022-06-28"},{"$f":"IFERROR(INDEX(TerminPlaner[],MATCH($H$34&\"|\"&ROW(A4),TerminPlaner[EINDEUTIGER WERT (BERECHNET)],0),2),\"\")","v":""},{"$f":"IFERROR(INDEX(TerminPlaner[],MATCH($H$34&\"|\"&ROW(A4),TerminPlaner[EINDEUTIGER WERT (BERECHNET)],0),3),\"\")","v":""}]
[{"$nulls":4},{"$f":"Zeitintervalle!E34","v":"13:45:00"},{"$f":"IFERROR(INDEX(TerminPlaner[],MATCH(DATEVALUE(DatumWert)&TagesPlan[[#This Row],[Uhrzeit]],LookUpDatumUndUhrzeit,0),3),\"\")","v":""},null,null,{"$f":"IFERROR(INDEX(TerminPlaner[],MATCH($H$34&\"|\"&ROW(A5),TerminPlaner[EINDEUTIGER WERT (BERECHNET)],0),2),\"\")","v":""},{"$f":"IFERROR(INDEX(TerminPlaner[],MATCH($H$34&\"|\"&ROW(A5),TerminPlaner[EINDEUTIGER WERT (BERECHNET)],0),3),\"\")","v":""}]
[{"$nulls":4},{"$f":"Zeitintervalle!E35","v":"14:00:00"},{"$f":"IFERROR(INDEX(TerminPlaner[],MATCH(DATEVALUE(DatumWert)&TagesPlan[[#This Row],[Uhrzeit]],LookUpDatumUndUhrzeit,0),3),\"\")","v":""}]
[{"$nulls":4},{"$f":"Zeitintervalle!E36","v":"14:15:00"},{"$f":"IFERROR(INDEX(TerminPlaner[],MATCH(DATEVALUE(DatumWert)&TagesPlan[[#This Row],[Uhrzeit]],LookUpDatumUndUhrzeit,0),3),\"\")","v":""}]
[{"$nulls":4},{"$f":"Zeitintervalle!E37","v":"14:30:00"},{"$f":"IFERROR(INDEX(TerminPlaner[],MATCH(DATEVALUE(DatumWert)&TagesPlan[[#This Row],[Uhrzeit]],LookUpDatumUndUhrzeit,0),3),\"\")","v":""}]
[{"$nulls":4},{"$f":"Zeitintervalle!E38","v":"14:45:00"},{"$f":"IFERROR(INDEX(TerminPlaner[],MATCH(DATEVALUE(DatumWert)&TagesPlan[[#This Row],[Uhrzeit]],LookUpDatumUndUhrzeit,0),3),\"\")","v":""}]
[{"$nulls":4},{"$f":"Zeitintervalle!E39","v":"15:00:00"},{"$f":"IFERROR(INDEX(TerminPlaner[],MATCH(DATEVALUE(DatumWert)&TagesPlan[[#This Row],[Uhrzeit]],LookUpDatumUndUhrzeit,0),3),\"\")","v":"Pause"}]
[{"$nulls":4},{"$f":"Zeitintervalle!E40","v":"15:15:00"},{"$f":"IFERROR(INDEX(TerminPlaner[],MATCH(DATEVALUE(DatumWert)&TagesPlan[[#This Row],[Uhrzeit]],LookUpDatumUndUhrzeit,0),3),\"\")","v":""}]
[{"$nulls":4},{"$f":"Zeitintervalle!E41","v":"15:30:00"},{"$f":"IFERROR(INDEX(TerminPlaner[],MATCH(DATEVALUE(DatumWert)&TagesPlan[[#This Row],[Uhrzeit]],LookUpDatumUndUhrzeit,0),3),\"\")","v":""}]
[{"$nulls":4},{"$f":"Zeitintervalle!E42","v":"15:45:00"},{"$f":"IFERROR(INDEX(TerminPlaner[],MATCH(DATEVALUE(DatumWert)&TagesPlan[[#This Row],[Uhrzeit]],LookUpDatumUndUhrzeit,0),3),\"\")","v":""}]
[{"$nulls":4},{"$f":"Zeitintervalle!E43","v":"16:00:00"},{"$f":"IFERROR(INDEX(TerminPlaner[],MATCH(DATEVALUE(DatumWert)&TagesPlan[[#This Row],[Uhrzeit]],LookUpDatumUndUhrzeit,0),3),\"\")","v":""}]
[{"$nulls":4},{"$f":"Zeitintervalle!E44","v":"16:15:00"},{"$f":"IFERROR(INDEX(TerminPlaner[],MATCH(DATEVALUE(DatumWert)&TagesPlan[[#This Row],[Uhrzeit]],LookUpDatumUndUhrzeit,0),3),\"\")","v":""}]
[{"$nulls":4},{"$f":"Zeitintervalle!E45","v":"16:30:00"},{"$f":"IFERROR(INDEX(TerminPlaner[],MATCH(DATEVALUE(DatumWert)&TagesPlan[[#This Row],[Uhrzeit]],LookUpDatumUndUhrzeit,0),3),\"\")","v":""}]
[{"$nulls":4},{"$f":"Zeitintervalle!E46","v":"16:45:00"},{"$f":"IFERROR(INDEX(TerminPlaner[],MATCH(DATEVALUE(DatumWert)&TagesPlan[[#This Row],[Uhrzeit]],LookUpDatumUndUhrzeit,0),3),\"\")","v":""}]
[{"$nulls":4},{"$f":"Zeitintervalle!E47","v":"17:00:00"},{"$f":"IFERROR(INDEX(TerminPlaner[],MATCH(DATEVALUE(DatumWert)&TagesPlan[[#This Row],[Uhrzeit]],LookUpDatumUndUhrzeit,0),3),\"\")","v":"Nach Hause"}]
[{"$nulls":4},{"$f":"Zeitintervalle!E48","v":"17:15:00"},{"$f":"IFERROR(INDEX(TerminPlaner[],MATCH(DATEVALUE(DatumWert)&TagesPlan[[#This Row],[Uhrzeit]],LookUpDatumUndUhrzeit,0),3),\"\")","v":""}]
[{"$nulls":4},{"$f":"Zeitintervalle!E49","v":"17:30:00"},{"$f":"IFERROR(INDEX(TerminPlaner[],MATCH(DATEVALUE(DatumWert)&TagesPlan[[#This Row],[Uhrzeit]],LookUpDatumUndUhrzeit,0),3),\"\")","v":""}]
[{"$nulls":4},{"$f":"Zeitintervalle!E50","v":"17:45:00"},{"$f":"IFERROR(INDEX(TerminPlaner[],MATCH(DATEVALUE(DatumWert)&TagesPlan[[#This Row],[Uhrzeit]],LookUpDatumUndUhrzeit,0),3),\"\")","v":""}]
[{"$nulls":4},{"$f":"Zeitintervalle!E51","v":"18:00:00"},{"$f":"IFERROR(INDEX(TerminPlaner[],MATCH(DATEVALUE(DatumWert)&TagesPlan[[#This Row],[Uhrzeit]],LookUpDatumUndUhrzeit,0),3),\"\")","v":"Fußballtraining"}]
[{"$nulls":4},{"$f":"Zeitintervalle!E52","v":"18:15:00"},{"$f":"IFERROR(INDEX(TerminPlaner[],MATCH(DATEVALUE(DatumWert)&TagesPlan[[#This Row],[Uhrzeit]],LookUpDatumUndUhrzeit,0),3),\"\")","v":""}]
[{"$nulls":4},{"$f":"Zeitintervalle!E53","v":"18:30:00"},{"$f":"IFERROR(INDEX(TerminPlaner[],MATCH(DATEVALUE(DatumWert)&TagesPlan[[#This Row],[Uhrzeit]],LookUpDatumUndUhrzeit,0),3),\"\")","v":""}]
[{"$nulls":4},{"$f":"Zeitintervalle!E54","v":"18:45:00"},{"$f":"IFERROR(INDEX(TerminPlaner[],MATCH(DATEVALUE(DatumWert)&TagesPlan[[#This Row],[Uhrzeit]],LookUpDatumUndUhrzeit,0),3),\"\")","v":""}]
[{"$nulls":4},{"$f":"Zeitintervalle!E55","v":"19:00:00"},{"$f":"IFERROR(INDEX(TerminPlaner[],MATCH(DATEVALUE(DatumWert)&TagesPlan[[#This Row],[Uhrzeit]],LookUpDatumUndUhrzeit,0),3),\"\")","v":""}]
[{"$nulls":4},{"$f":"Zeitintervalle!E56","v":"19:15:00"},{"$f":"IFERROR(INDEX(TerminPlaner[],MATCH(DATEVALUE(DatumWert)&TagesPlan[[#This Row],[Uhrzeit]],LookUpDatumUndUhrzeit,0),3),\"\")","v":""}]
[{"$nulls":4},{"$f":"Zeitintervalle!E57","v":"19:30:00"},{"$f":"IFERROR(INDEX(TerminPlaner[],MATCH(DATEVALUE(DatumWert)&TagesPlan[[#This Row],[Uhrzeit]],LookUpDatumUndUhrzeit,0),3),\"\")","v":""}]
[{"$nulls":4},{"$f":"Zeitintervalle!E58","v":"19:45:00"},{"$f":"IFERROR(INDEX(TerminPlaner[],MATCH(DATEVALUE(DatumWert)&TagesPlan[[#This Row],[Uhrzeit]],LookUpDatumUndUhrzeit,0),3),\"\")","v":""}]
[{"$nulls":4},{"$f":"Zeitintervalle!E59","v":"20:00:00"},{"$f":"IFERROR(INDEX(TerminPlaner[],MATCH(DATEVALUE(DatumWert)&TagesPlan[[#This Row],[Uhrzeit]],LookUpDatumUndUhrzeit,0),3),\"\")","v":""}]
[{"$nulls":4},{"$f":"Zeitintervalle!E60","v":"20:15:00"},{"$f":"IFERROR(INDEX(TerminPlaner[],MATCH(DATEVALUE(DatumWert)&TagesPlan[[#This Row],[Uhrzeit]],LookUpDatumUndUhrzeit,0),3),\"\")","v":""}]
[{"$nulls":4},{"$f":"Zeitintervalle!E61","v":"20:30:00"},{"$f":"IFERROR(INDEX(TerminPlaner[],MATCH(DATEVALUE(DatumWert)&TagesPlan[[#This Row],[Uhrzeit]],LookUpDatumUndUhrzeit,0),3),\"\")","v":""}]
[{"$nulls":4},{"$f":"Zeitintervalle!E62","v":"20:45:00"},{"$f":"IFERROR(INDEX(TerminPlaner[],MATCH(DATEVALUE(DatumWert)&TagesPlan[[#This Row],[Uhrzeit]],LookUpDatumUndUhrzeit,0),3),\"\")","v":""}]
[{"$nulls":4},{"$f":"Zeitintervalle!E63","v":"21:00:00"},{"$f":"IFERROR(INDEX(TerminPlaner[],MATCH(DATEVALUE(DatumWert)&TagesPlan[[#This Row],[Uhrzeit]],LookUpDatumUndUhrzeit,0),3),\"\")","v":""}]
[{"$nulls":4},{"$f":"Zeitintervalle!E64","v":""},{"$f":"IFERROR(INDEX(TerminPlaner[],MATCH(DATEVALUE(DatumWert)&TagesPlan[[#This Row],[Uhrzeit]],LookUpDatumUndUhrzeit,0),3),\"\")","v":""}]
[{"$nulls":4},{"$f":"Zeitintervalle!E65","v":""},{"$f":"IFERROR(INDEX(TerminPlaner[],MATCH(DATEVALUE(DatumWert)&TagesPlan[[#This Row],[Uhrzeit]],LookUpDatumUndUhrzeit,0),3),\"\")","v":""}]
[{"$nulls":4},{"$f":"Zeitintervalle!E66","v":""},{"$f":"IFERROR(INDEX(TerminPlaner[],MATCH(DATEVALUE(DatumWert)&TagesPlan[[#This Row],[Uhrzeit]],LookUpDatumUndUhrzeit,0),3),\"\")","v":""}]
[{"$nulls":4},{"$f":"Zeitintervalle!E67","v":""},{"$f":"IFERROR(INDEX(TerminPlaner[],MATCH(DATEVALUE(DatumWert)&TagesPlan[[#This Row],[Uhrzeit]],LookUpDatumUndUhrzeit,0),3),\"\")","v":""}]
[{"$nulls":4},{"$f":"Zeitintervalle!E68","v":""},{"$f":"IFERROR(INDEX(TerminPlaner[],MATCH(DATEVALUE(DatumWert)&TagesPlan[[#This Row],[Uhrzeit]],LookUpDatumUndUhrzeit,0),3),\"\")","v":""}]
[{"$nulls":4},{"$f":"Zeitintervalle!E69","v":""},{"$f":"IFERROR(INDEX(TerminPlaner[],MATCH(DATEVALUE(DatumWert)&TagesPlan[[#This Row],[Uhrzeit]],LookUpDatumUndUhrzeit,0),3),\"\")","v":""}]
[{"$nulls":4},{"$f":"Zeitintervalle!E70","v":""},{"$f":"IFERROR(INDEX(TerminPlaner[],MATCH(DATEVALUE(DatumWert)&TagesPlan[[#This Row],[Uhrzeit]],LookUpDatumUndUhrzeit,0),3),\"\")","v":""}]
[{"$nulls":4},{"$f":"Zeitintervalle!E71","v":""},{"$f":"IFERROR(INDEX(TerminPlaner[],MATCH(DATEVALUE(DatumWert)&TagesPlan[[#This Row],[Uhrzeit]],LookUpDatumUndUhrzeit,0),3),\"\")","v":""}]
[{"$nulls":4},{"$f":"Zeitintervalle!E72","v":""},{"$f":"IFERROR(INDEX(TerminPlaner[],MATCH(DATEVALUE(DatumWert)&TagesPlan[[#This Row],[Uhrzeit]],LookUpDatumUndUhrzeit,0),3),\"\")","v":""}]
[{"$nulls":4},{"$f":"Zeitintervalle!E73","v":""},{"$f":"IFERROR(INDEX(TerminPlaner[],MATCH(DATEVALUE(DatumWert)&TagesPlan[[#This Row],[Uhrzeit]],LookUpDatumUndUhrzeit,0),3),\"\")","v":""}]
[{"$nulls":4},{"$f":"Zeitintervalle!E74","v":""},{"$f":"IFERROR(INDEX(TerminPlaner[],MATCH(DATEVALUE(DatumWert)&TagesPlan[[#This Row],[Uhrzeit]],LookUpDatumUndUhrzeit,0),3),\"\")","v":""}]
[{"$nulls":4},{"$f":"Zeitintervalle!E75","v":""},{"$f":"IFERROR(INDEX(TerminPlaner[],MATCH(DATEVALUE(DatumWert)&TagesPlan[[#This Row],[Uhrzeit]],LookUpDatumUndUhrzeit,0),3),\"\")","v":""}]

{"sheet":"Terminplaner","index":1,"n_rows":15,"n_cols":8,"rows_kept":15,"merged":[[0,1,0,2],[1,1,4,2],[5,1,6,2],[7,1,7,2]]}
[null,"Terminplaner"]
[null,{"$f":"DAY(DatumWert)","v":22},null,null,"DATUM","UHRZEIT","BESCHREIBUNG","EINDEUTIGER WERT (BERECHNET)"]
[{"$nulls":4},{"$f":"TODAY()","v":"2022-06-22"},"06:00:00","Aufstehen",{"$f":"TerminPlaner[[#This Row],[DATUM]]&\"|\"&COUNTIF($E$3:E3,E3)","v":"44734|1"}]
[{"$nulls":4},{"$f":"TODAY()","v":"2022-06-22"},"06:30:00","Duschen",{"$f":"TerminPlaner[[#This Row],[DATUM]]&\"|\"&COUNTIF($E$3:E4,E4)","v":"44734|2"}]
[{"$nulls":4},"2022-06-22","07:30:00","Zur Arbeit gehen",{"$f":"TerminPlaner[[#This Row],[DATUM]]&\"|\"&COUNTIF($E$3:E5,E5)","v":"44734|3"}]
[null,{"$f":"TEXT(DatumWert,\"aaaa\")","v":"Mittwoch"},null,null,"2022-06-22","08:00:00","Schichtbeginn",{"$f":"TerminPlaner[[#This Row],[DATUM]]&\"|\"&COUNTIF($E$3:E6,E6)","v":"44734|4"}]
[{"$nulls":4},"2022-06-22","10:00:00","Pause",{"$f":"TerminPlaner[[#This Row],[DATUM]]&\"|\"&COUNTIF($E$3:E7,E7)","v":"44734|5"}]
[null,{"$f":"DatumWert","v":"22 JUNI, 2022"},null,null,"2022-06-22","12:00:00","Mittagessen",{"$f":"TerminPlaner[[#This Row],[DATUM]]&\"|\"&COUNTIF($E$3:E8,E8)","v":"44734|6"}]
[{"$nulls":4},"2022-06-22","13:00:00","Zurück zur Arbeit",{"$f":"TerminPlaner[[#This Row],[DATUM]]&\"|\"&COUNTIF($E$3:E9,E9)","v":"44734|7"}]
[null,"Zum Bearbeiten der Zeitintervalle auswählen",null,null,"2022-06-22","13:30:00","Genossenschaft anrufen",{"$f":"TerminPlaner[[#This Row],[DATUM]]&\"|\"&COUNTIF($E$3:E10,E10)","v":"44734|8"}]
[{"$nulls":4},"2022-06-22","15:00:00","Pause",{"$f":"TerminPlaner[[#This Row],[DATUM]]&\"|\"&COUNTIF($E$3:E11,E11)","v":"44734|9"}]
[null,"Zum Anzeigen des Tagesplans auswählen",null,null,"2022-06-22","17:00:00","Nach Hause",{"$f":"TerminPlaner[[#This Row],[DATUM]]&\"|\"&COUNTIF($E$3:E12,E12)","v":"44734|10"}]
[{"$nulls":4},"2022-06-22","18:00:00","Fußballtraining",{"$f":"TerminPlaner[[#This Row],[DATUM]]&\"|\"&COUNTIF($E$3:E13,E13)","v":"44734|11"}]
[{"$nulls":4},{"$f":"TODAY()+1","v":"2022-06-23"},"06:30:00","Frühstück",{"$f":"TerminPlaner[[#This Row],[DATUM]]&\"|\"&COUNTIF($E$3:E15,E14)","v":"44735|2"}]
[{"$nulls":4},{"$f":"TODAY()+1","v":"2022-06-23"},"07:30:00","Zur Arbeit gehen",{"$f":"TerminPlaner[[#This Row],[DATUM]]&\"|\"&COUNTIF($E$3:E15,E15)","v":"44735|2"}]

{"sheet":"Zeitintervalle","index":2,"n_rows":75,"n_cols":5,"rows_kept":75,"merged":[[0,1,0,2],[1,1,1,2],[9,1,9,2]]}
[null,"Zeitintervalle"]
[null,"ZEITTABELLE BEARBEITEN",null,null,"Zeit"]
[{"$nulls":4},{"$f":"Anfangs_zeit","v":"06:00:00"}]
[null,"Anfangszeit","06:00:00",null,{"$f":"IFERROR(IF($E3+Schrittweite>EndZeit,\"\",$E3+Schrittweite),\"\")","v":"06:15:00"}]
[{"$nulls":4},"06:30:00"]
[null,"Intervall","15 MIN",null,"06:45:00"]
[{"$nulls":4},"07:00:00"]
[null,"Endzeit","21:00:00",null,"07:15:00"]
[{"$nulls":4},"07:30:00"]
[null,"ZEITPLAN ANZEIGEN",null,null,"07:45:00"]
[{"$nulls":4},"08:00:00"]
[null,"Zum Anzeigen des Tagesplans auswählen",null,null,"08:15:00"]
[{"$nulls":4},"08:30:00"]
[null,"Auswählen, um einen neuen Termin hinzuzufügen",null,null,"08:45:00"]
[{"$nulls":4},"09:00:00"]
[{"$nulls":4},"09:15:00"]
[{"$nulls":4},"09:30:00"]
[{"$nulls":4},"09:45:00"]
[{"$nulls":4},"10:00:00"]
[{"$nulls":4},"10:15:00"]
[{"$nulls":4},"10:30:00"]
[{"$nulls":4},"10:45:00"]
[{"$nulls":4},"11:00:00"]
[{"$nulls":4},"11:15:00"]
[{"$nulls":4},"11:30:00"]
[{"$nulls":4},"11:45:00"]
[{"$nulls":4},"12:00:00"]
[{"$nulls":4},"12:15:00"]
[{"$nulls":4},"12:30:00"]
[{"$nulls":4},"12:45:00"]
[{"$nulls":4},"13:00:00"]
[{"$nulls":4},"13:15:00"]
[{"$nulls":4},"13:30:00"]
[{"$nulls":4},"13:45:00"]
[{"$nulls":4},"14:00:00"]
[{"$nulls":4},{"$f":"IFERROR(IF($E35+Schrittweite>EndZeit,\"\",$E35+Schrittweite),\"\")","v":"14:15:00"}]
[{"$nulls":4},"14:30:00"]
[{"$nulls":4},"14:45:00"]
[{"$nulls":4},"15:00:00"]
[{"$nulls":4},"15:15:00"]
[{"$nulls":4},"15:30:00"]
[{"$nulls":4},"15:45:00"]
[{"$nulls":4},"16:00:00"]
[{"$nulls":4},"16:15:00"]
[{"$nulls":4},"16:30:00"]
[{"$nulls":4},"16:45:00"]
[{"$nulls":4},"17:00:00"]
[{"$nulls":4},"17:15:00"]
[{"$nulls":4},"17:30:00"]
[{"$nulls":4},"17:45:00"]
[{"$nulls":4},"18:00:00"]
[{"$nulls":4},"18:15:00"]
[{"$nulls":4},"18:30:00"]
[{"$nulls":4},"18:45:00"]
[{"$nulls":4},"19:00:00"]
[{"$nulls":4},"19:15:00"]
[{"$nulls":4},"19:30:00"]
[{"$nulls":4},"19:45:00"]
[{"$nulls":4},"20:00:00"]
[{"$nulls":4},"20:15:00"]
[{"$nulls":4},"20:30:00"]
[{"$nulls":4},"20:45:00"]
[{"$nulls":4},"21:00:00"]
[{"$nulls":4},""]
[{"$nulls":4},""]
[{"$nulls":4},""]
[{"$nulls":4},""]
[{"$nulls":4},{"$f":"IFERROR(IF($E67+Schrittweite>EndZeit,\"\",$E67+Schrittweite),\"\")","v":""}]
[{"$nulls":4},""]
[{"$nulls":4},""]
[{"$nulls":4},""]
[{"$nulls":4},""]
[{"$nulls":4},""]
[{"$nulls":4},""]
[{"$nulls":4},""]